bitfinex/quotes_SOLUSD_20240813
["timestamp","ask_amount","ask_price","bid_price","bid_amount"]
[1723562634131,6.8541,145.9,145.85,0.37647]
[1723562634816,0.8275496,145.92,145.85,0.37647]
[1723562635213,6.8535,145.91,145.85,0.37647]
[1723562635598,7.6807496,145.92,145.85,1.74664831]
[1723562635802,7.6807496,145.92,145.86,0.12549]
[1723562636300,6.8538,145.91,145.85,0.37647]
[1723562637219,7.6806496,145.92,145.85,0.37647]
[1723562637399,7.6806496,145.92,145.86,0.12549]
[1723562639097,7.6806496,145.92,145.86,1.49538193]
[1723562639419,7.6806496,145.92,145.87,0.25098]
[1723562639920,0.8275496,145.92,145.85,0.12549]
[1723562640117,7.6805496,145.92,145.85,0.50196]
[1723562640913,0.8275496,145.92,145.85,0.50196]
[1723562641113,6.856,145.86,145.83,15.0164]
[1723562641506,7.15486762,145.91,145.83,15.0164]
[1723562641715,20.0,145.9,145.83,15.0164]
[1723562642428,20.0,145.91,145.83,15.0164]
[1723562642615,7.6808496,145.92,145.83,15.0164]
[1723562642802,26.8537,145.91,145.84,45.50196]
[1723562643205,6.8537,145.91,145.84,45.50196]
[1723562644222,0.8275496,145.92,145.84,45.50196]
[1723562644821,6.8543,145.9,145.84,45.50196]
[1723562645027,6.8559,145.86,145.83,15.0164]
[1723562645216,46.4568,145.84,145.83,15.0164]
[1723562645402,46.4568,145.84,145.71,123.61720576]
[1723562645403,6.8577,145.82,145.79,15.956]
[1723562645601,39.6,145.86,145.79,15.956]
[1723562645825,20.0,145.85,145.79,15.956]
[1723562646106,6.8573,145.83,145.79,15.956]
[1723562646424,20.0,145.85,145.79,15.956]
[1723562646638,31.66,145.86,145.79,15.956]
[1723562646797,6.8554,145.87,145.79,15.956]
[1723562647225,38.5151,145.88,145.8,0.25098]
[1723562647429,20.0,145.87,145.81,0.12549]
[1723562647932,26.8557,145.87,145.81,0.25098]
[1723562648227,20.0,145.87,145.82,0.25098]
[1723562648436,20.0,145.87,145.83,0.12549]
[1723562648731,6.855,145.88,145.83,0.12549]
[1723562649031,6.8543,145.9,145.83,1.74686931]
[1723562649237,26.8545,145.89,145.84,0.12549]
[1723562650033,6.8551,145.88,145.84,0.12549]
[1723562650837,20.0,145.89,145.84,0.12549]
[1723562650838,26.8546,145.89,145.84,0.12549]
[1723562651642,6.8551,145.88,145.84,0.12549]
[1723562652141,26.8546,145.89,145.84,0.12549]
[1723562652838,6.855,145.88,145.84,0.12549]
[1723562653046,26.8545,145.89,145.84,0.12549]
[1723562653338,26.8545,145.89,145.79,15.956]
[1723562653339,39.56,145.87,145.79,15.956]
[1723562653537,6.8572,145.84,145.79,15.956]
[1723562653746,6.858,145.82,145.79,15.956]
[1723562653917,8.51863536,145.82,145.79,15.956]
[1723562654316,1.66063536,145.84,145.79,15.956]
[1723562654638,41.22063536,145.83,145.75,15.7555]
[1723562654823,1.66063536,145.82,145.75,15.7555]
[1723562655014,39.56,145.83,145.75,15.7555]
[1723562655214,6.8579,145.82,145.75,15.7555]
[1723562656146,46.4164,145.85,145.76,45.37647]
[1723562656358,26.8568,145.84,145.77,0.12549]
[1723562656518,26.857,145.84,145.77,0.12549]
[1723562657448,26.8568,145.84,145.77,0.12549]
[1723562658026,20.0,145.84,145.77,0.12549]
[1723562658926,26.8568,145.84,145.77,0.12549]
[1723562659847,20.0,145.84,145.77,0.12549]
[1723562660560,17.1439,145.83,145.75,15.7555]
[1723562660849,39.56,145.81,145.75,15.7555]
[1723562661027,6.8604,145.77,145.75,15.7555]
[1723562661437,6.8604,145.77,145.72,15.2792]
[1723562661745,1.66063536,145.76,145.72,15.2792]
[1723562661927,46.4196,145.79,145.72,15.2792]
[1723562662332,39.56,145.81,145.73,1.37132441]
[1723562662649,26.8577,145.82,145.75,0.12549]
[1723562662823,20.0,145.82,145.75,0.12549]
[1723562663024,26.8578,145.82,145.75,0.12549]
[1723562663248,20.0,145.82,145.75,0.12549]
[1723562663419,6.8574,145.83,145.75,0.12549]
[1723562663923,6.8574,145.83,145.75,45.12549]
[1723562664232,6.8559,145.86,145.77,23.09659]
[1723562664439,6.8563,145.85,145.79,0.12549]
[1723562665339,6.856,145.86,145.79,0.12549]
[1723562665541,46.72127891,145.88,145.79,20.12549]
[1723562665542,53.57647891,145.88,145.79,20.12549]
[1723562665738,6.8555,145.87,145.81,0.12549]
[1723562665946,6.8555,145.87,145.8,45.37647]
[1723562665947,63.85887891,145.88,145.8,45.25098]
[1723562666259,6.8569,145.84,145.8,45.25098]
[1723562666422,6.8564,145.85,145.8,45.25098]
[1723562667549,6.8568,145.84,145.8,45.25098]
[1723562668162,56.7,145.86,145.77,22.9711]
[1723562668357,20.0,145.85,145.78,45.25098]
[1723562668527,20.0,145.85,145.78,45.0]
[1723562668859,6.8573,145.83,145.78,45.0]
[1723562669055,26.8566,145.85,145.78,45.0]
[1723562669435,6.8568,145.84,145.78,45.0]
[1723562669828,38.5168,145.84,145.78,45.0]
[1723562670032,31.66,145.84,145.78,45.0]
[1723562670232,38.82127891,145.88,145.79,0.50196]
[1723562670464,20.0,145.87,145.79,0.50196]
[1723562671177,6.8562,145.86,145.79,0.50196]
[1723562671465,31.66,145.86,145.79,0.50196]
[1723562672537,31.66,145.86,145.79,0.37647]
[1723562672836,6.8573,145.83,145.79,0.12549]
[1723562673053,37.1386,145.87,145.77,22.9711]
[1723562673054,40.17883536,145.82,145.77,22.9711]
[1723562673251,31.66,145.82,145.77,22.9711]
[1723562673483,31.66,145.84,145.77,22.9711]
[1723562673959,6.8573,145.83,145.77,22.9711]
[1723562674362,38.5169,145.84,145.78,45.0]
[1723562674587,6.8573,145.83,145.78,45.0]
[1723562675696,31.66,145.84,145.78,45.0]
[1723562675862,31.66,145.84,145.79,0.12549]
[1723562676178,31.66,145.86,145.79,0.50196]
[1723562676355,31.66,145.84,145.79,0.12549]
[1723562676556,38.5178,145.82,145.77,22.9711]
[1723562676781,38.5178,145.82,145.78,0.12549]
[1723562677468,6.8583,145.81,145.78,0.12549]
[1723562677782,31.66,145.82,145.78,45.12549]
[1723562677984,38.5179,145.82,145.78,45.12549]
[1723562678285,31.66,145.82,145.77,22.9711]
[1723562678474,31.66,145.8,145.77,22.9711]
[1723562679193,38.518,145.82,145.77,22.9711]
[1723562680165,6.8553,145.88,145.78,0.25098]
[1723562680364,38.5153,145.88,145.8,0.12549]
[1723562680574,31.66,145.88,145.8,0.25098]
[1723562680892,38.5143,145.9,145.82,0.12549]
[1723562681200,38.5143,145.9,145.84,0.12549]
[1723562681501,38.5143,145.9,145.84,45.50196]
[1723562681666,6.8545,145.89,145.84,45.50196]
[1723562682474,6.8554,145.87,145.83,15.6595]
[1723562682671,39.55,145.9,145.83,15.6595]
[1723562682672,6.8559,145.86,145.83,15.6595]
[1723562682874,42.28206013,145.91,145.84,0.25098]
[1723562683087,6.8555,145.87,145.83,15.6595]
[1723562683782,63.83598688,145.89,145.83,15.6595]
[1723562684088,6.856,145.86,145.83,15.6595]
[1723562684698,6.8563,145.85,145.83,15.6595]
[1723562684877,46.4055,145.87,145.83,15.6595]
[1723562685194,20.0,145.86,145.83,15.6595]
[1723562685795,26.8558,145.86,145.83,15.6595]
[1723562685959,20.0,145.86,145.83,15.6595]
[1723562687392,20.0,145.86,145.84,45.12549]
[1723562687563,20.0,145.86,145.84,45.0]
[1723562688170,46.69908688,145.89,145.84,45.0]
[1723562688468,26.8549,145.88,145.84,45.0]
[1723562688671,20.0,145.88,145.84,45.0]
[1723562689274,26.855,145.88,145.84,45.0]
[1723562689489,6.8555,145.87,145.84,45.0]
[1723562689875,20.0,145.88,145.85,0.12549]
[1723562690199,20.0,145.88,145.85,0.37647]
[1723562690369,14.00766392,145.91,145.85,0.50196]
[1723562690570,6.854,145.9,145.85,0.50196]
[1723562690796,6.855,145.88,145.85,0.25098]
[1723562690995,63.83776392,145.91,145.85,0.25098]
[1723562691169,6.8552,145.88,145.85,0.25098]
[1723562691366,6.8556,145.87,145.85,0.25098]
[1723562691577,6.8556,145.87,145.84,51.0916]
[1723562692586,6.8547,145.89,145.84,51.0916]
[1723562693694,6.855,145.88,145.84,51.0916]
[1723562694003,6.856,145.86,145.83,15.78499]
[1723562694300,39.55,145.87,145.83,15.6595]
[1723562694612,39.55,145.85,145.8,6.0484]
[1723562694895,39.55,145.85,145.79,16.5717]
[1723562695098,20.0,145.84,145.79,16.5717]
[1723562695313,6.8573,145.83,145.79,16.5717]
[1723562695601,6.8578,145.82,145.79,16.5717]
[1723562696600,39.55,145.81,145.76,21.8327]
[1723562696908,6.8592,145.79,145.76,21.8327]
[1723562697793,6.8592,145.79,145.76,15.64]
[1723562698099,6.8588,145.8,145.76,15.64]
[1723562698467,46.4094,145.79,145.72,22.2156]
[1723562699206,39.55,145.79,145.72,22.2156]
[1723562699421,41.21063536,145.79,145.72,22.2156]
[1723562699575,39.55,145.77,145.72,22.2156]
[1723562700290,1.66063536,145.76,145.72,22.2156]
[1723562700494,6.8614,145.75,145.72,15.64]
[1723562700693,8.52233536,145.74,145.72,15.64]
[1723562700895,1.66063536,145.74,145.72,15.64]
[1723562701192,39.55,145.75,145.72,15.64]
[1723562701386,46.4111,145.75,145.72,15.64]
[1723562701574,8.52223536,145.74,145.72,15.64]
[1723562701776,39.55,145.75,145.69,21.8916]
[1723562702174,6.8615,145.74,145.69,21.8916]
[1723562702598,1.66063536,145.73,145.69,21.8916]
[1723562702908,46.4111,145.75,145.7,0.12549]
[1723562703105,42.34566987,145.77,145.71,0.12549]
[1723562703291,42.34566987,145.77,145.7,45.12549]
[1723562703292,20.0,145.76,145.7,45.25098]
[1723562703482,6.8616,145.74,145.7,45.12549]
[1723562703681,8.52273536,145.73,145.69,21.8916]
[1723562703989,33.38063536,145.72,145.69,15.7649]
[1723562704378,6.8616,145.74,145.69,15.7649]
[1723562704379,31.72,145.74,145.69,15.7649]
[1723562704575,20.0,145.76,145.7,0.12549]
[1723562704806,31.72,145.76,145.7,0.25098]
[1723562705386,31.72,145.76,145.71,0.12549]
[1723562706110,38.5806,145.76,145.71,0.12549]
[1723562708510,38.5807,145.76,145.71,0.12549]
[1723562708696,26.8611,145.75,145.71,0.12549]
[1723562708881,6.8619,145.74,145.69,15.7649]
[1723562709082,1.66063536,145.73,145.69,15.7649]
[1723562709316,8.52293536,145.73,145.69,15.7649]
[1723562710413,8.52293536,145.73,145.7,45.0]
[1723562710619,45.72971856,145.74,145.7,45.0]
[1723562711478,7.14811856,145.74,145.72,6.2132]
[1723562711707,6.8588,145.8,145.73,45.37647]
[1723562711708,6.8592,145.79,145.73,45.37647]
[1723562711892,6.8597,145.78,145.73,45.25098]
[1723562712095,38.86817735,145.8,145.72,6.2132]
[1723562712096,31.72,145.76,145.72,6.2132]
[1723562712296,38.5809,145.76,145.72,6.2132]
[1723562713119,31.72,145.76,145.72,6.2132]
[1723562713294,31.72,145.78,145.73,45.0]
[1723562713503,45.72697735,145.8,145.74,0.12549]
[1723562713714,26.8592,145.79,145.74,0.37647]
[1723562713894,26.8592,145.79,145.74,0.12549]
[1723562714241,31.72,145.78,145.73,45.0]
[1723562715308,6.8611,145.75,145.72,6.2132]
[1723562715509,6.8611,145.75,145.7,0.12549]
[1723562715724,8.52173536,145.75,145.7,45.50196]
[1723562716818,6.8611,145.75,145.7,0.37647]
[1723562717012,38.5807,145.76,145.7,0.37647]
[1723562717620,6.861,145.75,145.7,0.37647]
[1723562718115,6.861,145.75,145.7,45.37647]
[1723562718318,38.5807,145.76,145.7,45.37647]
[1723562719197,6.861,145.75,145.7,45.37647]
[1723562719393,38.5808,145.76,145.7,45.37647]
[1723562719624,31.72,145.76,145.7,45.37647]
[1723562719821,31.72,145.78,145.71,0.12549]
[1723562720009,20.0,145.77,145.71,0.25098]
[1723562720211,20.0,145.77,145.72,0.25098]
[1723562721918,38.86817735,145.8,145.74,0.12549]
[1723562722115,20.0,145.79,145.74,0.25098]
[1723562722418,6.8611,145.75,145.72,0.12549]
[1723562722624,21.66063536,145.79,145.72,0.12549]
[1723562722625,31.72,145.76,145.72,0.12549]
[1723562722924,6.861,145.75,145.72,0.12549]
[1723562723300,38.5806,145.76,145.72,0.12549]
[1723562723506,1.66063536,145.75,145.72,0.12549]
[1723562725529,7.15565674,145.77,145.72,0.12549]
[1723562725721,14.01605674,145.77,145.72,0.12549]
[1723562726529,7.15565674,145.77,145.72,0.12549]
[1723562726737,26.8592,145.79,145.73,0.12549]
[1723562726936,20.0,145.79,145.73,0.25098]
[1723562727112,26.8592,145.79,145.74,0.12549]
[1723562727428,6.8597,145.78,145.74,0.12549]
[1723562727633,38.5797,145.78,145.73,0.25098]
[1723562728433,38.5797,145.78,145.74,0.12549]
[1723562728812,7.15536349,145.8,145.74,0.12549]
[1723562729012,6.8577,145.82,145.76,0.12549]
[1723562729223,20.0,145.81,145.76,46.87384624]
[1723562729506,31.72,145.83,145.76,46.87384624]
[1723562730033,31.72,145.83,145.76,45.50196]
[1723562730235,6.8579,145.82,145.76,45.50196]
[1723562730743,6.8579,145.82,145.76,46.87294286]
[1723562731113,38.5774,145.83,145.76,45.50196]
[1723562731424,14.0113676,145.84,145.76,45.50196]
[1723562731612,6.8573,145.83,145.76,45.50196]
[1723562732131,6.8581,145.82,145.76,45.50196]
[1723562732431,38.5773,145.83,145.76,45.50196]
[1723562733016,14.0111676,145.84,145.76,45.50196]
[1723562733336,20.0,145.83,145.76,45.50196]
[1723562735321,26.857,145.84,145.76,45.50196]
[1723562735710,38.5757,145.87,145.77,1.00863119]
[1723562735910,6.8557,145.87,145.82,0.12549]
[1723562736148,6.855,145.88,145.82,46.51024534]
[1723562736525,6.855,145.88,145.82,45.50196]
[1723562736844,6.8554,145.87,145.82,45.50196]
[1723562737139,6.855,145.88,145.83,1.00849613]
[1723562737342,6.8569,145.84,145.82,45.12549]
[1723562737547,31.72,145.85,145.79,15.9601]
[1723562738020,38.5755,145.87,145.79,15.9601]
[1723562738213,20.0,145.86,145.79,15.9601]
[1723562738415,26.8559,145.86,145.79,15.9601]
[1723562738645,26.8559,145.86,145.8,0.12549]
[1723562738844,26.8559,145.86,145.8,45.50196]
[1723562741525,38.5755,145.87,145.8,45.50196]
[1723562741834,6.8555,145.87,145.8,45.50196]
[1723562742041,6.8559,145.86,145.8,45.50196]
[1723562742747,6.8554,145.87,145.8,45.50196]
[1723562744044,38.5747,145.89,145.8,45.50196]
[1723562744294,31.72,145.89,145.82,0.12549]
[1723562744429,31.72,145.89,145.82,45.50196]
[1723562744637,31.72,145.87,145.82,45.50196]
[1723562745013,6.856,145.86,145.82,45.50196]
[1723562745217,38.5754,145.87,145.82,45.50196]
[1723562747444,31.72,145.87,145.82,45.50196]
[1723562747644,26.855,145.88,145.82,45.50196]
[1723562748057,20.0,145.88,145.82,45.50196]
[1723562748264,38.5744,145.89,145.82,45.50196]
[1723562748432,31.72,145.87,145.82,45.50196]
[1723562748753,31.72,145.89,145.82,45.50196]
[1723562749458,38.5747,145.89,145.82,45.50196]
[1723562749956,31.72,145.89,145.82,45.50196]
[1723562750260,6.8558,145.87,145.82,45.50196]
[1723562751334,6.855,145.88,145.82,45.50196]
[1723562752063,6.8552,145.88,145.82,45.50196]
[1723562752540,38.5755,145.87,145.82,45.50196]
[1723562753140,31.72,145.87,145.82,45.50196]
[1723562753461,38.5747,145.89,145.82,45.50196]
[1723562753956,31.72,145.87,145.82,0.12549]
[1723562754271,6.8568,145.84,145.81,6.3008]
[1723562754456,8.51743536,145.84,145.81,6.3008]
[1723562754872,38.5764,145.85,145.81,6.3008]
[1723562755035,38.5756,145.87,145.81,6.3008]
[1723562755659,38.5756,145.87,145.82,45.50196]
[1723562756043,31.72,145.87,145.82,45.50196]
[1723562756843,38.5746,145.89,145.82,45.50196]
[1723562757268,20.0,145.88,145.82,45.50196]
[1723562757968,6.8554,145.87,145.82,45.50196]
[1723562758173,26.855,145.88,145.82,45.50196]
[1723562758571,6.8554,145.87,145.82,45.50196]
[1723562759865,26.8551,145.88,145.82,45.50196]
[1723562761372,38.88416211,145.91,145.83,16.6473]
[1723562761548,38.88416211,145.91,145.84,45.37647]
[1723562761549,6.8549,145.88,145.84,45.37647]
[1723562761864,31.72,145.89,145.84,45.37647]
[1723562761865,38.5746,145.89,145.84,45.37647]
[1723562762858,31.72,145.89,145.84,45.37647]
[1723562763261,38.88416211,145.91,145.84,45.37647]
[1723562763457,38.88416211,145.91,145.85,0.12549]
[1723562764157,6.8545,145.89,145.85,0.12549]
[1723562764393,31.72,145.89,145.84,45.12549]
[1723562764560,6.8552,145.88,145.84,45.12549]
[1723562764748,31.72,145.89,145.84,0.25098]
[1723562765453,7.16416211,145.91,145.84,0.25098]
[1723562765454,45.73786211,145.91,145.84,0.25098]
[1723562765674,38.88416211,145.91,145.85,0.37647]
[1723562765882,0.8275496,145.92,145.86,0.25098]
[1723562766086,7.6805496,145.92,145.86,0.25098]
[1723562766265,0.8275496,145.92,145.87,0.37647]
[1723562766473,0.8275496,145.92,145.89,0.12549]
[1723562766675,0.8275496,145.92,145.89,1.52528684]
[1723562766971,2.67822389,146.0,145.91,0.12549]
[1723562766972,6.8498,145.99,145.91,0.12549]
[1723562767183,31.72,145.96,145.92,15.868]
[1723562767356,6.8526,145.93,145.89,45.0]
[1723562767564,17.1259,145.98,145.89,45.0]
[1723562767565,38.5734,145.92,145.89,45.0]
[1723562767863,31.72,145.92,145.89,45.0]
[1723562768062,6.8527,145.93,145.89,45.0]
[1723562768459,31.72,145.94,145.9,0.25098]
[1723562768664,38.5724,145.94,145.9,0.12549]
[1723562768880,31.72,145.94,145.89,45.0]
[1723562769185,31.72,145.94,145.9,0.50196]
[1723562769565,31.72,145.96,145.9,0.50196]
[1723562769773,6.8511,145.97,145.9,0.50196]
[1723562769986,6.8512,145.96,145.9,0.50196]
[1723562770166,31.72,145.96,145.9,0.50196]
[1723562770363,38.5703,145.98,145.91,1.36954445]
[1723562770683,6.8517,145.95,145.92,0.12549]
[1723562770871,31.72,145.96,145.91,0.12549]
[1723562770872,38.5713,145.96,145.91,0.12549]
[1723562771071,31.72,145.98,145.91,0.12549]
[1723562771267,6.8501,145.99,145.91,0.12549]
[1723562771587,6.8502,145.98,145.91,0.12549]
[1723562772182,6.8499,145.99,145.91,0.12549]
[1723562772778,6.8514,145.96,145.91,0.12549]
[1723562773091,6.8518,145.95,145.91,0.12549]
[1723562773269,31.72,145.96,145.91,0.12549]
[1723562773270,38.5712,145.96,145.91,0.12549]
[1723562773593,6.8526,145.93,145.89,45.0]
[1723562773766,31.72,145.94,145.89,45.0]
[1723562773964,17.1247,145.99,145.89,45.0]
[1723562773965,31.72,145.96,145.89,45.0]
[1723562774582,38.5712,145.96,145.89,45.0]
[1723562774782,1.66063536,145.95,145.9,0.50196]
[1723562775384,6.8536,145.91,145.88,22.2445]
[1723562775583,38.5744,145.9,145.88,15.6712]
[1723562775791,6.8544,145.89,145.84,6.6245]
[1723562776087,31.72,145.9,145.84,22.1074]
[1723562776088,8.51563536,145.88,145.84,22.1074]
[1723562776291,38.575,145.88,145.84,22.1074]
[1723562776497,31.72,145.88,145.84,22.1074]
[1723562776867,38.5741,145.9,145.85,1.37119195]
[1723562777066,38.5741,145.9,145.85,1.37107489]
[1723562777067,31.72,145.9,145.85,1.37107489]
[1723562777270,20.0,145.89,145.84,22.1074]
[1723562777469,31.72,145.88,145.84,22.1074]
[1723562777672,6.8555,145.87,145.84,22.1074]
[1723562778192,6.856,145.86,145.84,15.4829]
[1723562778366,31.72,145.86,145.84,15.4829]
[1723562780069,6.8551,145.88,145.84,15.4829]
[1723562780070,38.5751,145.88,145.84,15.4829]
[1723562780996,6.8555,145.87,145.84,15.4829]
[1723562781204,31.72,145.86,145.8,21.6532]
[1723562782486,31.72,145.86,145.81,0.25098]
[1723562782686,38.575,145.88,145.82,0.37647]
[1723562782998,20.0,145.87,145.83,0.25098]
[1723562784268,31.72,145.88,145.84,0.37647]
[1723562784475,31.72,145.88,145.85,0.12549]
[1723562785491,38.5749,145.88,145.85,0.12549]
[1723562785790,38.5749,145.88,145.82,0.25098]
[1723562785998,38.575,145.88,145.83,0.12549]
[1723562786190,38.575,145.88,145.83,0.25098]
[1723562787078,19.90857905,145.92,145.81,45.0]
[1723562787079,31.72,145.86,145.81,45.0]
[1723562787308,38.5769,145.84,145.8,21.6532]
[1723562787488,31.72,145.88,145.76,21.8315]
[1723562787489,6.8595,145.79,145.76,21.8315]
[1723562787689,6.8596,145.78,145.76,15.6751]
[1723562788202,38.5801,145.77,145.76,15.6751]
[1723562788492,38.5801,145.77,145.72,6.1564]
[1723562788875,31.72,145.77,145.72,6.1564]
[1723562789815,31.72,145.77,145.73,45.37647]
[1723562789979,31.72,145.77,145.73,45.50196]
[1723562790305,31.72,145.77,145.72,6.1564]
[1723562791486,31.72,145.77,145.73,45.50196]
[1723562791874,6.8606,145.76,145.72,6.1564]
[1723562792078,38.5802,145.77,145.71,16.234]
[1723562792486,31.72,145.75,145.71,16.234]
[1723562793281,31.72,145.75,145.72,45.12549]
[1723562797512,31.72,145.75,145.71,16.234]
[1723562797814,34.47516852,145.81,145.68,6.326]
[1723562797815,31.72,145.73,145.68,6.326]
[1723562798015,31.72,145.71,145.67,15.1649]
[1723562799012,27.15689924,145.74,145.64,6.2784]
[1723562799216,27.15689924,145.74,145.65,1.37265454]
[1723562799217,31.72,145.73,145.65,1.37265454]
[1723562799421,31.72,145.73,145.64,6.2784]
[1723562800224,31.72,145.73,145.66,0.12549]
[1723562800428,31.72,145.69,145.64,6.2784]
[1723562801919,31.72,145.69,145.65,0.12549]
[1723562802147,31.72,145.69,145.64,0.12549]
[1723562802332,31.72,145.69,145.63,15.727]
[1723562803316,31.72,145.69,145.64,45.0]
[1723562803517,31.72,145.69,145.64,45.12549]
[1723562806237,9.54958824,145.71,145.65,0.12549]
[1723562806238,31.72,145.71,145.65,0.12549]
[1723562806420,31.72,145.71,145.65,0.37647]
[1723562806755,31.72,145.71,145.66,0.12549]
[1723562806920,31.72,145.71,145.66,0.25098]
[1723562807114,31.72,145.69,145.66,0.12549]
[1723562807457,6.8643,145.68,145.65,0.12549]
[1723562807744,31.72,145.67,145.64,45.0]
[1723562808329,14.01646983,145.7,145.65,0.12549]
[1723562808330,31.72,145.69,145.65,0.12549]
[1723562808534,31.72,145.69,145.65,0.25098]
[1723562809851,31.72,145.71,145.65,1.62307399]
[1723562810033,31.72,145.71,145.66,0.12549]
[1723562810239,31.72,145.71,145.67,0.12549]
[1723562810542,31.72,145.71,145.67,0.37647]
[1723562812171,31.72,145.73,145.67,0.37647]
[1723562812629,20.0,145.72,145.68,0.12549]
[1723562812960,20.0,145.72,145.68,0.37647]
[1723562813263,20.0,145.72,145.68,0.12549]
[1723562813858,20.0,145.72,145.68,0.37647]
[1723562814432,31.72,145.73,145.68,0.37647]
[1723562815049,40.24293536,145.73,145.68,0.37647]
[1723562815360,31.72,145.73,145.68,0.37647]
[1723562815534,31.72,145.73,145.69,0.12549]
[1723562815745,31.72,145.73,145.69,0.37647]
[1723562816165,31.72,145.73,145.69,0.12549]
[1723562816674,31.72,145.73,145.69,0.37647]
[1723562816871,38.5822,145.73,145.69,0.25098]
[1723562817373,38.5822,145.73,145.69,0.12549]
[1723562817545,31.72,145.71,145.65,0.12549]
[1723562817743,31.72,145.71,145.65,0.50196]
[1723562817939,31.72,145.73,145.65,0.50196]
[1723562820349,31.72,145.73,145.65,20.50196]
[1723562820548,38.583,145.71,145.67,0.12549]
[1723562820748,31.72,145.71,145.67,0.50196]
[1723562821469,38.5821,145.73,145.67,0.50196]
[1723562821674,31.72,145.73,145.67,0.50196]
[1723562823659,31.72,145.69,145.63,15.727]
[1723562823848,12.69,145.66,145.63,15.727]
[1723562825968,31.74,145.67,145.63,15.727]
[1723562826564,31.74,145.69,145.64,0.25098]
[1723562826766,31.74,145.69,145.64,45.25098]
[1723562828087,7.1532249,145.72,145.64,45.25098]
[1723562828285,31.74,145.76,145.68,0.12549]
[1723562828452,38.5999,145.78,145.7,0.12549]
[1723562828656,14.01061182,145.77,145.7,0.25098]
[1723562828973,14.01061182,145.77,145.71,0.12549]
[1723562829176,6.8616,145.74,145.71,0.12549]
[1723562829356,6.8614,145.75,145.7,45.0]
[1723562829752,38.6007,145.76,145.7,45.0]
[1723562830053,31.74,145.76,145.71,0.12549]
[1723562830357,38.6007,145.76,145.71,0.12549]
[1723562830557,38.6006,145.76,145.71,0.12549]
[1723562830866,31.74,145.76,145.71,0.12549]
[1723562831166,31.74,145.76,145.71,0.25098]
[1723562832554,31.74,145.78,145.72,0.37647]
[1723562832883,20.0,145.77,145.73,0.25098]
[1723562833247,33.40063536,145.76,145.71,0.12549]
[1723562833475,31.74,145.76,145.71,0.50196]
[1723562833870,38.6009,145.76,145.71,0.12549]
[1723562834760,6.861,145.75,145.71,0.12549]
[1723562835985,38.6007,145.76,145.71,0.12549]
[1723562837662,31.74,145.76,145.71,1.74896192]
[1723562838223,31.74,145.76,145.71,0.12549]
[1723562838396,31.74,145.74,145.7,45.0]
[1723562838598,38.6015,145.74,145.7,45.0]
[1723562839013,31.74,145.74,145.7,45.0]
[1723562839614,31.74,145.74,145.71,0.12549]
[1723562840993,31.74,145.76,145.71,0.12549]
[1723562841193,26.8611,145.75,145.71,0.12549]
[1723562841620,6.8616,145.74,145.71,0.12549]
[1723562841928,20.0,145.75,145.7,45.0]
[1723562842114,26.8611,145.75,145.7,45.0]
[1723562842287,31.74,145.76,145.71,0.50196]